bitfinex/quotes_SOLUSD_20230110
["timestamp","ask_amount","ask_price","bid_price","bid_amount"]
[1673374525157,20.0,16.355,16.332,45.93]
[1673374525158,25.48,16.35,16.332,45.93]
[1673374525364,117.2207,16.349,16.33,25.36]
[1673374525571,20.0,16.348,16.33,25.36]
[1673374525826,20.0,16.347,16.33,25.36]
[1673374525985,65.89,16.347,16.33,25.36]
[1673374526403,65.89,16.347,16.33,71.3]
[1673374527344,65.89,16.347,16.332,1.92]
[1673374531192,45.89,16.347,16.333,9.75088921]
[1673374531367,20.0,16.348,16.334,8.98407]
[1673374531691,20.0,16.348,16.335,20.0]
[1673374531884,20.0,16.348,16.336,1.92]
[1673374532087,65.89,16.348,16.336,1.92]
[1673374532830,20.0,16.347,16.336,1.92]
[1673374534522,45.89,16.346,16.336,1.92]
[1673374536100,20.0,16.345,16.336,1.92]
[1673374536842,20.0,16.345,16.331,20.0]
[1673374537341,20.0,16.345,16.33,45.36]
[1673374537565,20.0,16.343,16.33,25.36]
[1673374538954,20.0,16.343,16.328,115.466]
[1673374539170,45.9,16.342,16.329,21.92]
[1673374539573,45.9,16.342,16.329,41.92]
[1673374540006,45.9,16.342,16.33,20.0]
[1673374540333,45.9,16.342,16.331,1.92]
[1673374540641,45.9,16.343,16.331,1.92]
[1673374540838,108.6146,16.344,16.331,1.92]
[1673374544953,20.0,16.343,16.33,25.57]
[1673374545147,65.9,16.343,16.329,20.0]
[1673374545362,65.9,16.343,16.328,20.0]
[1673374545575,65.9,16.343,16.329,20.0]
[1673374546936,18.55825296,16.342,16.33,0.96]
[1673374547192,18.55825296,16.342,16.308,11.3886]
[1673374547193,45.48,16.34,16.32,25.51]
[1673374547558,85.91,16.339,16.32,25.51]
[1673374547994,85.91,16.339,16.321,20.0]
[1673374551044,1.92,16.338,16.321,20.0]
[1673374551469,20.0,16.336,16.321,20.0]
[1673374551679,114.5883,16.335,16.32,45.51]
[1673374551879,20.0,16.334,16.32,25.51]
[1673374552424,45.93,16.333,16.32,25.51]
[1673374553370,45.93,16.333,16.321,21.92]
[1673374553903,45.93,16.334,16.321,21.92]
[1673374554840,45.93,16.334,16.321,1.92]
[1673374556409,45.93,16.334,16.321,21.92]
[1673374556811,114.5883,16.335,16.321,72.52038145]
[1673374556935,45.92,16.337,16.321,72.52038145]
[1673374557134,45.91,16.338,16.322,7.06926]
[1673374557345,45.91,16.338,16.323,21.92]
[1673374558207,65.91,16.339,16.323,21.92]
[1673374558392,20.0,16.338,16.323,21.92]
[1673374558708,20.0,16.338,16.33,25.57]
[1673374558966,20.0,16.344,16.33,127.96]
[1673374559134,116.9142,16.359,16.331,139.30640791]
[1673374559352,116.9142,16.359,16.34,127.82]
[1673374559543,45.86,16.358,16.341,8.98104]
[1673374559759,65.86,16.358,16.341,21.92]
[1673374560083,65.86,16.358,16.341,1.92]
[1673374560401,20.0,16.357,16.342,13.19817944]
[1673374560611,65.86,16.358,16.343,0.96]
[1673374560830,65.86,16.358,16.344,0.96]
[1673374561056,65.86,16.358,16.345,0.96]
[1673374561227,65.86,16.358,16.346,0.96]
[1673374561434,45.85,16.361,16.35,25.57]
[1673374561648,162.7542,16.366,16.35,25.57]
[1673374561875,162.7542,16.366,16.351,1.92]
[1673374562285,20.0,16.365,16.351,1.92]
[1673374564608,20.0,16.365,16.35,25.57]
[1673374564810,47.76,16.364,16.346,45.89]
[1673374565022,20.0,16.363,16.347,20.0]
[1673374565465,20.0,16.363,16.347,33.19817944]
[1673374565669,47.77,16.362,16.347,20.0]
[1673374566828,20.0,16.361,16.347,20.0]
[1673374567460,47.77,16.362,16.347,20.0]
[1673374568073,45.85,16.362,16.347,20.0]
[1673374568289,20.0,16.365,16.347,20.0]
[1673374568290,45.84,16.364,16.347,33.19817944]
[1673374568547,45.84,16.364,16.348,20.0]
[1673374569353,45.84,16.364,16.349,1.92]
[1673374569668,45.84,16.364,16.349,21.92]
[1673374570066,45.84,16.365,16.349,35.11817944]
[1673374570274,45.84,16.363,16.349,35.11817944]
[1673374570501,65.84,16.364,16.349,35.11817944]
[1673374570721,20.0,16.364,16.349,35.11817944]
[1673374570900,45.84,16.363,16.349,35.11817944]
[1673374571563,45.84,16.364,16.35,25.57]
[1673374571755,45.84,16.364,16.351,1.92]
[1673374573140,45.84,16.364,16.351,21.92]
[1673374573329,45.84,16.365,16.351,21.92]
[1673374575762,20.0,16.364,16.351,1.92]
[1673374577475,19.0,16.364,16.351,1.92]
[1673374577649,20.0,16.37,16.352,79.33264888]
[1673374577870,114.4237,16.377,16.36,25.57]
[1673374578191,20.0,16.376,16.361,0.96]
[1673374578389,26.4215202,16.367,16.362,0.96]
[1673374578594,6.1954202,16.367,16.363,0.96]
[1673374578810,45.8,16.379,16.364,20.96]
[1673374579015,101.7877,16.38,16.37,25.55]
[1673374579226,101.7877,16.38,16.371,0.96]
[1673374579657,101.7877,16.38,16.372,0.96]
[1673374579863,101.7877,16.38,16.37,25.55]
[1673374580072,20.0,16.378,16.361,20.0]
[1673374580296,19.0,16.378,16.361,20.0]
[1673374580505,45.81,16.377,16.361,20.0]
[1673374581033,45.81,16.377,16.37,25.57]
[1673374581248,101.7877,16.38,16.37,25.57]
[1673374581438,101.7877,16.38,16.371,1.92]
[1673374583649,147.5877,16.38,16.371,1.92]
[1673374584070,101.7877,16.38,16.371,1.92]
[1673374585136,101.7877,16.38,16.371,21.92]
[1673374585449,101.2877,16.38,16.371,21.92]
[1673374586061,8.89514049,16.382,16.371,21.92]
[1673374588594,20.0,16.381,16.37,20.0]
[1673374588815,65.79,16.381,16.364,20.0]
[1673374589170,20.0,16.38,16.36,25.54]
[1673374589340,20.0,16.379,16.36,25.54]
[1673374589530,20.0,16.378,16.36,25.54]
[1673374589736,138.2097,16.377,16.36,25.54]
[1673374589953,20.0,16.376,16.36,25.54]
[1673374590492,20.0,16.374,16.36,25.54]
[1673374591230,45.82,16.373,16.36,25.54]
[1673374591540,20.0,16.372,16.36,25.54]
[1673374592387,20.0,16.372,16.361,1.92]
[1673374592689,45.82,16.373,16.361,1.92]
[1673374593219,45.81,16.375,16.361,1.92]
[1673374593435,20.0,16.374,16.361,1.92]
[1673374593837,20.0,16.374,16.361,21.92]
[1673374595428,65.81,16.376,16.361,21.92]
[1673374595652,65.81,16.376,16.361,35.11817944]
[1673374595831,20.0,16.375,16.361,35.11817944]
[1673374596571,164.0197,16.377,16.361,35.11817944]
[1673374596901,65.8,16.379,16.361,35.11817944]
[1673374597103,20.0,16.379,16.362,52.90198]
[1673374597317,40.0,16.379,16.363,1.92]
[1673374597525,20.0,16.379,16.363,35.11817944]
[1673374597720,20.0,16.379,16.364,13.19817944]
[1673374598040,40.0,16.379,16.365,1.92]
[1673374598251,20.0,16.379,16.365,1.92]
[1673374598476,20.0,16.379,16.365,0.96]
[1673374598703,45.8,16.378,16.361,45.85]
[1673374599007,20.0,16.377,16.36,25.54]
[1673374599402,20.0,16.375,16.36,71.39]
[1673374600158,20.0,16.375,16.36,25.54]
[1673374600366,20.0,16.375,16.361,1.92]
[1673374604870,20.0,16.375,16.361,21.92]
[1673374605093,45.81,16.376,16.361,21.92]
[1673374606232,45.81,16.376,16.361,1.92]
[1673374606456,20.0,16.375,16.361,15.11817944]
[1673374606675,20.0,16.375,16.361,1.92]
[1673374608475,45.81,16.374,16.361,1.92]
[1673374608688,20.0,16.373,16.36,25.54]
[1673374609630,20.0,16.375,16.36,25.54]
[1673374609819,17.5,16.375,16.361,20.0]
[1673374610032,17.5,16.375,16.362,1.92]
[1673374611197,17.5,16.375,16.362,15.11817944]
[1673374611395,20.0,16.377,16.362,15.11817944]
[1673374611602,20.0,16.377,16.362,1.92]
[1673374611939,45.8,16.378,16.363,13.19817944]
[1673374612130,20.0,16.379,16.364,1.92]
[1673374612341,160.9645,16.38,16.37,25.55]
[1673374612552,20.0,16.379,16.371,0.96]
[1673374612871,115.1645,16.38,16.371,0.96]
[1673374613493,8.89514049,16.382,16.372,0.96]
[1673374613717,8.89514049,16.382,16.373,0.96]
[1673374613923,8.89514049,16.382,16.374,0.96]
[1673374614133,8.89514049,16.382,16.375,0.96]
[1673374614464,8.89514049,16.382,16.376,0.96]
[1673374614675,8.89514049,16.382,16.377,0.96]
[1673374614984,8.89514049,16.382,16.378,0.96]
[1673374615531,8.89514049,16.382,16.379,0.96]
[1673374618894,8.89514049,16.382,16.38,0.96]
[1673374619318,8.89514049,16.382,16.381,0.96]
[1673374619510,8.89514049,16.382,16.374,20.0]
[1673374619839,8.89514049,16.382,16.375,1.92]
[1673374622679,8.89514049,16.382,16.373,50.58505195]
[1673374624046,8.89514049,16.382,16.374,1.92]
[1673374628016,8.89514049,16.382,16.374,21.92]
[1673374628441,8.89514049,16.382,16.374,1.92]
[1673374628965,8.89514049,16.382,16.375,20.0]
[1673374629177,8.89514049,16.382,16.376,1.92]
[1673374629913,8.89514049,16.382,16.376,15.11817944]
[1673374630125,8.89514049,16.382,16.376,1.92]
[1673374630744,8.89514049,16.382,16.374,50.58505195]
[1673374632113,8.89514049,16.382,16.375,1.92]
[1673374632550,8.89514049,16.382,16.375,21.92]
[1673374633052,8.89514049,16.382,16.375,1.92]
[1673374634113,8.89514049,16.382,16.375,15.11817944]
[1673374634332,8.89514049,16.382,16.376,20.0]
[1673374634539,8.89514049,16.382,16.377,1.92]
[1673374634853,8.89514049,16.382,16.378,1.92]
[1673374635059,8.89514049,16.382,16.375,21.92]
[1673374636002,8.89514049,16.382,16.375,1.92]
[1673374636423,8.89514049,16.382,16.374,50.58505195]
[1673374636424,8.89514049,16.382,16.37,71.44]
[1673374636633,8.89514049,16.382,16.37,25.62]
[1673374636855,20.0,16.381,16.37,25.62]
[1673374637387,20.0,16.381,16.364,43.86178113]
[1673374637388,25.49,16.38,16.364,43.86178113]
[1673374637594,156.4977,16.38,16.364,43.86178113]
[1673374637809,20.0,16.378,16.355,116.8641]
[1673374638124,0.96,16.377,16.359,20.0]
[1673374638352,46.77,16.377,16.359,20.0]
[1673374638535,20.0,16.376,16.359,20.0]
[1673374639070,20.0,16.374,16.359,20.0]
[1673374639682,20.0,16.374,16.36,1.92]
[1673374640011,139.4516,16.374,16.36,1.92]
[1673374640236,139.4516,16.374,16.357,65.86]
[1673374640448,139.4516,16.374,16.355,162.7341]
[1673374640641,139.4516,16.374,16.358,13.19817944]
[1673374641288,139.4516,16.374,16.358,33.19817944]
[1673374641485,139.4516,16.374,16.359,1.92]
[1673374641697,139.4516,16.374,16.359,28.31635888]
[1673374641913,139.4516,16.374,16.359,15.11817944]
[1673374642123,139.4516,16.374,16.36,13.19817944]
[1673374642345,139.4516,16.374,16.361,1.92]
[1673374642750,139.4516,16.374,16.362,13.19817944]
[1673374643065,139.4516,16.374,16.363,1.92]
[1673374643486,139.4516,16.374,16.363,15.11817944]
[1673374645604,139.4516,16.374,16.363,1.92]
[1673374645797,139.4516,16.374,16.363,15.11817944]
[1673374648130,119.4516,16.374,16.363,15.11817944]
[1673374649067,119.4516,16.374,16.364,45.84]
[1673374649277,119.4516,16.374,16.365,1.92]
[1673374649811,119.4516,16.374,16.365,15.11817944]
[1673374650331,119.4516,16.374,16.365,14.15817944]
[1673374650545,20.0,16.373,16.365,14.15817944]
[1673374651473,119.4516,16.374,16.365,14.15817944]
[1673374652422,119.4516,16.374,16.366,0.96]
[1673374652738,119.4516,16.374,16.367,0.96]
[1673374655889,20.0,16.373,16.367,0.96]
[1673374656640,119.4516,16.374,16.367,0.96]
[1673374657800,119.4516,16.374,16.361,65.85]
[1673374657801,20.0,16.373,16.361,20.0]
[1673374658537,20.0,16.373,16.362,13.19817944]
[1673374659152,20.0,16.373,16.363,1.92]
[1673374660222,20.0,16.373,16.363,15.11817944]
[1673374660539,18.5,16.373,16.363,13.19817944]
[1673374662090,18.5,16.373,16.364,0.96]
[1673374663138,18.5,16.373,16.36,45.57]
[1673374663353,18.5,16.373,16.36,25.57]
[1673374664317,18.5,16.373,16.361,0.96]
[1673374668313,18.5,16.373,16.362,0.96]
[1673374668501,18.5,16.373,16.363,0.96]
[1673374670305,119.4516,16.374,16.363,0.96]
[1673374674725,20.0,16.373,16.363,0.96]
[1673374675036,20.0,16.373,16.362,13.19817944]
[1673374675244,119.4516,16.374,16.362,13.19817944]
[1673374675770,20.0,16.373,16.362,13.19817944]
[1673374676495,119.4516,16.374,16.362,13.19817944]
[1673374676709,119.4516,16.374,16.361,20.0]
[1673374678400,119.4516,16.374,16.362,15.11817944]
[1673374678800,119.4516,16.374,16.362,13.19817944]
[1673374679348,119.4516,16.374,16.363,0.96]
[1673374679560,119.4516,16.374,16.362,13.19817944]
[1673374679966,20.0,16.373,16.362,13.19817944]
[1673374680293,20.0,16.373,16.363,0.96]
[1673374680704,20.0,16.373,16.362,13.19817944]
[1673374682077,20.0,16.373,16.363,1.92]
[1673374682396,119.4516,16.374,16.363,1.92]
[1673374683866,20.0,16.373,16.363,0.96]
[1673374684180,20.0,16.373,16.362,1.92]
[1673374684794,20.0,16.373,16.362,0.96]
[1673374685123,20.0,16.373,16.361,13.19817944]
[1673374686271,20.0,16.373,16.362,0.96]
[1673374686811,119.4516,16.374,16.362,20.96]
[1673374687316,119.4516,16.374,16.363,14.15817944]
[1673374687527,119.4516,16.374,16.364,0.96]
[1673374687735,119.4516,16.374,16.364,14.15817944]
[1673374688053,119.4516,16.374,16.365,14.15817944]
[1673374688373,119.4516,16.374,16.366,0.96]
[1673374688809,119.4516,16.374,16.362,20.0]
[1673374689031,65.8,16.378,16.363,15.11817944]
[1673374689209,154.8877,16.38,16.363,80.95817944]
[1673374689419,109.0877,16.38,16.364,57.05996057]
[1673374689631,109.0877,16.38,16.365,21.92]
[1673374689956,109.0877,16.38,16.366,33.19817944]
[1673374690169,109.0877,16.38,16.367,21.92]
[1673374690372,109.0877,16.38,16.368,20.0]
[1673374690583,109.0877,16.38,16.369,1.92]
[1673374690992,109.0877,16.38,16.369,15.11817944]
[1673374693996,109.0877,16.38,16.37,25.55]
[1673374694292,109.0877,16.38,16.371,1.92]
[1673374694485,8.89514049,16.382,16.371,1.92]
[1673374694695,8.89514049,16.382,16.372,33.19817944]
[1673374694926,8.89514049,16.382,16.373,1.92]
[1673374695129,8.89514049,16.382,16.373,15.11817944]
[1673374695342,8.89514049,16.382,16.374,13.19817944]
[1673374695666,8.89514049,16.382,16.375,1.92]
[1673374696279,8.89514049,16.382,16.372,45.82]
[1673374696485,8.89514049,16.382,16.37,60.21141405]
[1673374697558,8.89514049,16.382,16.37,73.40959349]
[1673374697746,8.89514049,16.382,16.371,20.0]
[1673374698284,8.89514049,16.382,16.37,60.21141405]
[1673374699425,8.89514049,16.382,16.371,1.92]
[1673374703953,8.89514049,16.382,16.37,60.21141405]
[1673374704594,8.89514049,16.382,16.367,43.86178113]
[1673374704595,65.79,16.381,16.367,43.86178113]
[1673374704790,138.5438,16.38,16.363,45.84]
[1673374705000,20.0,16.379,16.364,13.19817944]
[1673374705221,65.8,16.379,16.364,13.19817944]
[1673374705433,20.0,16.378,16.361,144.73319518]
[1673374705840,20.0,16.378,16.362,13.19817944]
[1673374706701,20.0,16.378,16.361,144.73319518]
[1673374707335,45.81,16.377,16.361,144.73319518]
[1673374707526,45.81,16.377,16.362,13.19817944]
[1673374707737,65.8,16.378,16.362,13.19817944]
[1673374708386,65.8,16.378,16.363,1.92]
[1673374708789,65.8,16.378,16.363,28.31635888]
[1673374709103,65.8,16.378,16.363,15.11817944]
[1673374709972,65.8,16.378,16.361,80.87141405]
[1673374710166,0.96,16.377,16.361,35.02141405]
[1673374710575,20.0,16.375,16.361,35.02141405]
[1673374711318,20.0,16.375,16.362,0.96]
[1673374711544,20.0,16.375,16.361,35.02141405]
[1673374712373,45.81,16.374,16.361,35.02141405]
[1673374712584,20.0,16.373,16.361,35.02141405]
[1673374715640,20.0,16.375,16.361,35.02141405]
[1673374716473,20.0,16.375,16.362,20.0]
[1673374716978,20.0,16.375,16.361,35.02141405]
[1673374717190,1.92,16.374,16.359,45.86]
[1673374717420,20.0,16.373,16.358,45.86]
[1673374717739,20.0,16.373,16.359,0.96]
[1673374718050,20.0,16.373,16.359,20.96]
[1673374718683,20.0,16.373,16.359,0.96]
[1673374718891,0.96,16.372,16.358,20.0]
[1673374720248,0.96,16.372,16.359,45.86]
[1673374720464,0.96,16.372,16.353,20.0]
[1673374720465,20.0,16.369,16.353,20.0]
[1673374720680,20.0,16.369,16.352,45.88]
[1673374720901,49.19350996,16.368,16.351,45.88]
[1673374721219,1.44350996,16.366,16.351,45.88]
[1673374722144,1.44350996,16.366,16.352,0.96]
[1673374722365,1.44350996,16.366,16.353,0.96]
[1673374722582,20.0,16.365,16.347,65.89]
[1673374722791,1.44350996,16.364,16.352,13.19817944]
[1673374723109,1.44350996,16.364,16.35,20.0]
[1673374723626,1.44350996,16.364,16.35,33.19817944]
[1673374724476,0.96,16.363,16.351,0.96]
[1673374724787,0.96,16.363,16.349,20.0]
[1673374724988,0.96,16.363,16.35,0.96]
[1673374725199,1.61417691,16.362,16.35,0.96]
[1673374725411,1.61417691,16.362,16.349,33.19817944]
[1673374725820,117.69877691,16.362,16.349,33.19817944]
[1673374726470,117.69877691,16.362,16.349,13.19817944]
[1673374726771,1.68713587,16.36,16.35,45.88]
[1673374726986,1.68713587,16.36,16.349,13.19817944]
[1673374727301,1.68713587,16.361,16.349,33.19817944]
[1673374727509,21.68713587,16.361,16.348,45.89]
[1673374727724,1.68713587,16.359,16.347,65.89]
[1673374727943,1.68713587,16.359,16.348,20.0]
[1673374728168,1.68713587,16.359,16.345,45.89]
[1673374728361,21.68713587,16.359,16.346,20.0]
[1673374728671,21.68713587,16.359,16.343,13.19817944]
[1673374728893,0.96,16.358,16.344,59.09817944]
[1673374729098,1.68713587,16.357,16.344,13.19817944]
[1673374729292,1.68713587,16.358,16.345,59.08817944]
[1673374729624,109.2088,16.36,16.35,25.41]
[1673374729833,45.46,16.37,16.351,20.0]
[1673374730029,118.6148,16.368,16.351,79.07817944]
[1673374730240,118.6148,16.368,16.352,15.11817944]
[1673374730687,118.6148,16.368,16.353,45.87]
[1673374731089,1.92,16.366,16.353,45.87]
[1673374731522,138.6148,16.368,16.353,45.87]
[1673374731744,138.6148,16.368,16.354,1.92]
[1673374732050,138.6148,16.368,16.353,59.06817944]
[1673374732675,138.6148,16.368,16.354,1.92]
[1673374732883,0.96,16.366,16.354,1.92]
[1673374733096,138.6148,16.368,16.354,1.92]
[1673374734045,109.5461,16.371,16.355,59.06817944]
[1673374734240,109.5461,16.371,16.356,21.92]
[1673374734453,109.5461,16.371,16.357,20.0]
[1673374734678,109.5461,16.371,16.36,25.41]
[1673374734892,109.5461,16.371,16.361,0.96]
[1673374735089,109.5461,16.371,16.361,46.81]
[1673374735311,109.5461,16.371,16.362,0.96]
[1673374735503,109.5461,16.371,16.363,0.96]
[1673374735712,109.5461,16.371,16.363,14.15817944]
[1673374736133,20.0,16.377,16.364,34.15817944]
[1673374736343,20.0,16.377,16.365,0.96]
[1673374736556,20.0,16.377,16.365,14.15817944]
[1673374737858,20.0,16.377,16.366,0.96]
[1673374740877,138.5438,16.38,16.366,0.96]
[1673374740878,118.5438,16.38,16.37,25.31]
[1673374741089,118.5438,16.38,16.371,0.96]
[1673374741278,118.5438,16.38,16.372,0.96]
[1673374746014,118.5438,16.38,16.373,0.96]
[1673374746229,118.5438,16.38,16.374,0.96]
[1673374749492,148.1304662,16.385,16.374,0.96]
[1673374749813,148.1304662,16.385,16.375,0.96]
[1673374750337,148.1304662,16.385,16.376,14.15817944]
[1673374750538,148.1304662,16.385,16.377,0.96]
[1673374750750,148.1304662,16.385,16.378,0.96]
[1673374750949,148.1304662,16.385,16.379,0.96]
[1673374751159,148.1304662,16.385,16.38,0.96]
[1673374753177,20.0,16.384,16.38,0.96]
[1673374754121,20.0,16.384,16.379,0.96]
[1673374755679,20.0,16.384,16.376,13.19817944]
[1673374755894,20.0,16.384,16.369,65.83]
[1673374756220,20.0,16.384,16.369,115.35007446]
[1673374756860,20.0,16.384,16.371,20.0]
[1673374757378,20.0,16.384,16.372,1.92]
[1673374757697,20.0,16.384,16.372,64.6382539]
[1673374757909,20.0,16.384,16.373,20.0]
[1673374758123,20.0,16.384,16.374,1.92]
[1673374759587,148.1304662,16.385,16.374,1.92]
[1673374759784,148.1304662,16.385,16.374,15.11817944]
[1673374760416,148.1304662,16.385,16.374,64.6382539]
[1673374760624,148.1304662,16.385,16.375,20.0]
[1673374760955,148.1304662,16.385,16.376,1.92]
[1673374761154,20.0,16.384,16.376,1.92]
[1673374762739,148.1304662,16.385,16.376,1.92]
[1673374762955,148.1304662,16.385,16.376,21.92]
[1673374763267,148.1304662,16.385,16.378,20.0]
[1673374763475,148.1304662,16.385,16.379,1.92]
[1673374763691,148.1304662,16.385,16.38,20.0]
[1673374763878,148.1304662,16.385,16.381,1.92]
[1673374764088,4.049e-05,16.382,16.381,1.92]
[1673374764317,73.00230669,16.385,16.382,20.0]
[1673374764514,73.00230669,16.385,16.383,1.92]
[1673374765034,73.00230669,16.385,16.381,49.61696779]
[1673374765251,73.00230669,16.385,16.37,262.5798]
[1673374765252,20.0,16.384,16.371,20.0]
[1673374765579,65.79,16.384,16.374,49.61696779]
[1673374766735,65.79,16.384,16.371,20.0]
[1673374768408,65.79,16.384,16.372,1.92]
[1673374768833,65.79,16.384,16.37,74.83696779]
[1673374769148,65.79,16.384,16.371,20.0]
[1673374770198,65.79,16.384,16.37,74.83696779]
[1673374770412,65.79,16.384,16.368,20.0]
[1673374770616,65.79,16.384,16.369,1.92]
[1673374770830,65.79,16.384,16.368,20.0]
[1673374770831,1.92,16.383,16.368,69.61696779]
[1673374771039,1.92,16.383,16.368,20.0]
[1673374771256,45.79,16.382,16.366,20.0]
[1673374771568,20.0,16.381,16.367,20.0]
[1673374771966,20.0,16.379,16.367,20.0]
[1673374772300,20.0,16.379,16.364,20.0]
[1673374772510,20.0,16.377,16.363,79.03817944]
[1673374772703,253.3512,16.38,16.363,79.03817944]
[1673374772704,227.9412,16.38,16.365,62.81514723]
[1673374772920,227.9412,16.38,16.367,20.0]
[1673374773119,227.9412,16.38,16.37,25.24]
[1673374773350,227.9412,16.38,16.371,1.92]
[1673374774924,227.9412,16.38,16.371,0.96]
[1673374775141,227.9412,16.38,16.371,1.92]
[1673374775870,20.0,16.379,16.371,1.92]
[1673374776194,227.9412,16.38,16.371,1.92]
[1673374776381,227.9412,16.38,16.372,0.96]
[1673374777550,20.0,16.379,16.372,0.96]
[1673374778069,227.9412,16.38,16.372,0.96]
[1673374778284,227.9412,16.38,16.373,0.96]
[1673374778696,20.0,16.379,16.373,0.96]
[1673374780283,20.0,16.379,16.366,20.0]
[1673374780823,20.0,16.379,16.365,20.0]
[1673374781020,65.8,16.379,16.365,20.0]
[1673374781447,45.8,16.379,16.365,69.61696779]
[1673374781660,45.8,16.379,16.367,20.0]
[1673374781977,45.8,16.379,16.368,64.73514723]
[1673374782185,227.9412,16.38,16.368,64.73514723]
[1673374782396,227.9412,16.38,16.369,20.0]
[1673374782610,227.9412,16.38,16.37,1.92]
[1673374783330,45.78,16.387,16.372,20.0]
[1673374783544,161.0801,16.389,16.373,1.92]
[1673374783762,161.0801,16.389,16.374,20.0]
[1673374783953,161.0801,16.389,16.375,1.92]
[1673374784174,161.0801,16.389,16.375,15.11817944]
[1673374785545,45.78,16.387,16.375,15.11817944]
[1673374785856,65.77,16.388,16.375,15.11817944]
[1673374786071,20.0,16.387,16.375,15.11817944]
[1673374786281,45.77,16.388,16.375,15.11817944]
[1673374786487,20.0,16.388,16.376,13.19817944]
[1673374786700,20.0,16.388,16.377,0.96]
[1673374786917,20.0,16.388,16.378,0.96]
[1673374787135,20.0,16.388,16.379,0.96]
[1673374787345,20.0,16.388,16.38,0.96]
[1673374788068,20.0,16.388,16.381,0.96]
[1673374788281,20.0,16.388,16.382,0.96]
[1673374789025,20.0,16.388,16.383,0.96]
[1673374789426,20.0,16.388,16.374,69.61696779]
[1673374789655,20.0,16.388,16.375,1.92]
[1673374789864,20.0,16.388,16.376,20.0]
[1673374790071,20.0,16.388,16.377,1.92]
[1673374790285,45.78,16.387,16.377,1.92]
[1673374790700,20.0,16.387,16.377,1.92]
[1673374790918,20.0,16.384,16.375,49.61696779]
[1673374792691,20.0,16.384,16.376,1.92]
[1673374793756,73.00230669,16.385,16.376,21.92]
[1673374793970,20.0,16.384,16.376,1.92]
[1673374794908,73.00230669,16.385,16.376,1.92]
[1673374795125,73.00230669,16.385,16.377,20.0]
[1673374795438,73.00230669,16.385,16.378,1.92]
[1673374797732,20.0,16.384,16.378,1.92]
[1673374798150,20.0,16.384,16.377,49.61696779]
[1673374798360,20.0,16.384,16.379,49.61696779]
[1673374798588,20.0,16.384,16.37,59.33731227]
[1673374798805,65.79,16.384,16.371,69.61696779]
[1673374799853,20.0,16.384,16.371,69.61696779]
[1673374800798,45.79,16.384,16.372,13.19817944]
[1673374801003,73.00230669,16.385,16.372,13.19817944]
[1673374801323,20.0,16.384,16.373,1.92]
[1673374802049,20.0,16.384,16.373,21.92]